fUST/lending_fUST_20240423
["ID","MTS","AMOUNT","RATE_DAILY","PERIOD"]
[323237936,1713828370615,250.0,0.00020725,2]
[323237937,1713828388491,1063.49756436,0.000189,2]
[323237938,1713828400041,200.0,0.00020725,2]
[323237939,1713828407583,692.57331014,0.00020725,2]
[323237941,1713828414950,1000.0,0.00020725,2]
[323237942,1713828415992,200.0,0.00020725,2]
[323237943,1713828423513,692.57331014,0.00020725,2]
[323237944,1713828425813,154.82968734,0.00020725,2]
[323237945,1713828428943,1000.0,0.00020725,2]
[323237946,1713828441736,154.82968734,0.00020725,2]
[323237947,1713828444943,1000.0,0.00020725,2]
[323237948,1713828451233,154.82968734,0.00020725,2]
[323237949,1713828461742,154.82968734,0.00020725,2]
[323237950,1713828462949,1000.0,0.00020725,2]
[323237951,1713828465148,154.82968734,0.00020725,2]
[323237952,1713828477745,193.93377364,0.00020725,2]
[323237953,1713828482951,1000.0,0.00020725,2]
[323237954,1713828487149,228.68112719,0.00020725,2]
[323237955,1713828502951,1000.0,0.00020725,2]
[323237960,1713828520970,1000.0,0.00020725,2]
[323237961,1713828538961,1000.0,0.00020725,2]
[323237962,1713828558955,1000.0,0.00020725,2]
[323237963,1713828578963,1000.0,0.00020725,2]
[323237964,1713828596963,1000.0,0.00020725,2]
[323237965,1713828616969,1000.0,0.00020725,2]
[323238003,1713828632703,-189.15723965,0.00021466,2]
[323238005,1713828632713,-1311.46340123,0.00021466,2]
[323238007,1713828632722,-4616.10248829,0.00021466,2]
[323238033,1713828632971,1000.0,0.00020725,2]
[323238061,1713828638641,-977.60937861,0.00021465,2]
[323238063,1713828638651,-1184.44239216,0.00021466,2]
[323238065,1713828638661,-5458.5886175,0.00021467,2]
[323238066,1713828638670,-154.82968734,0.00021468,2]
[323238067,1713828638680,-418.80439758,0.00021468,2]
[323238068,1713828638692,-154.82968734,0.00021468,2]
[323238069,1713828638702,-300.0,0.00021468,2]
[323238070,1713828638713,-300.0,0.00021468,2]
[323238071,1713828638723,-1056.82567173,0.00021469,2]
[323238072,1713828638734,-283.30931028,0.00021469,2]
[323238073,1713828638745,-212.02643912,0.00021469,2]
[323238074,1713828638755,-405.26107631,0.0002147,2]
[323238075,1713828638766,-59148.32683968,0.00021471,2]
[323238076,1713828638777,-177.23745252,0.00021473,2]
[323238077,1713828638787,-441.89351231,0.00021473,2]
[323238078,1713828638798,-284.599279,0.0002149,2]
[323238079,1713828638809,-156.64204703,0.00022441,2]
[323238080,1713828638818,-20254.3562116,0.00022546,2]
[323238081,1713828638831,-878.85185253,0.00023219,2]
[323238082,1713828638842,-170.79474,0.00023482,2]
[323238083,1713828638851,-420.0,0.00023614,2]
[323238085,1713828638860,-1063.49756436,0.000239,2]
[323238087,1713828638869,-18596.81740477,0.00024757,2]
[323238088,1713828638879,-277.24658734,0.00024758,2]
[323238089,1713828638891,-469.73020406,0.00024758,2]
[323238090,1713828638902,-2439.57070982,0.00024758,2]
[323238091,1713828638914,-1685.73320516,0.00024758,2]
[323238092,1713828638924,-1846.42304824,0.00024765,2]
[323238093,1713828638936,-205.72464566,0.00024765,2]
[323238094,1713828638947,-342.72173801,0.00024765,2]
[323238095,1713828638958,-193.69034915,0.00024765,2]
[323238096,1713828638970,-155.25721891,0.00025731,2]
[323238097,1713828638980,-155.25721891,0.00025755,2]
[323238098,1713828638991,-752.54335766,0.00025831,2]
[323238099,1713828639001,-154.07814826,0.00025921,2]
[323238100,1713828639010,-587.0,0.00025976,2]
[323238101,1713828639019,-692.61042729,0.00026,2]
[323238102,1713828639029,-154.25576797,0.00026054,2]
[323238103,1713828639038,-1246.20169703,0.00026293,2]
[323238104,1713828639049,-154.25576797,0.00026356,2]
[323238105,1713828639060,-154.07814826,0.00026376,2]
[323238106,1713828639071,-154.07814826,0.00026396,2]
[323238107,1713828639082,-752.54335766,0.00026409,2]
[323238108,1713828639092,-752.54335766,0.00026596,2]
[323238109,1713828639102,-155.25721891,0.00026627,2]
[323238110,1713828639113,-1246.20169703,0.00026697,2]
[323238111,1713828639122,-150.34343428,0.00026876,2]
[323238112,1713828639131,-8515.70774373,0.00027,2]
[323238113,1713828639142,-154.82968734,0.00027,2]
[323238114,1713828639153,-332.38819351,0.00027,20]
[323238115,1713828639164,-150.34343428,0.00027173,2]
[323238116,1713828639173,-1246.20169703,0.00027205,2]
[323238117,1713828639184,-1246.20169703,0.00027335,2]
[323238118,1713828639198,-752.54335766,0.00027347,2]
[323238119,1713828639208,-3752.62022014,0.00027397,30]
[323238120,1713828639219,-500.0,0.00027397,2]
[323238121,1713828639231,-500.0,0.00027397,2]
[323238122,1713828639242,-500.0,0.00027397,2]
[323238123,1713828639252,-500.0,0.00027397,2]
[323238124,1713828639264,-500.0,0.00027397,2]
[323238125,1713828639275,-500.0,0.00027397,2]
[323238126,1713828639285,-500.0,0.00027397,2]
[323238127,1713828639296,-500.0,0.00027397,2]
[323238128,1713828639307,-500.0,0.00027397,2]
[323238129,1713828639319,-500.0,0.00027397,2]
[323238130,1713828639330,-500.0,0.00027397,2]
[323238131,1713828639340,-500.0,0.00027397,2]
[323238132,1713828639349,-500.0,0.00027397,2]
[323238133,1713828639360,-312.35440304,0.00027397,2]
[323238134,1713828639369,-500.0,0.00027397,2]
[323238135,1713828639379,-500.0,0.00027397,2]
[323238136,1713828639388,-500.0,0.00027397,2]
[323238137,1713828639397,-500.0,0.00027397,2]
[323238138,1713828639406,-500.0,0.00027397,2]
[323238139,1713828639415,-500.0,0.00027397,2]
[323238140,1713828639425,-500.0,0.00027397,2]
[323238141,1713828639434,-500.0,0.00027397,2]
[323238142,1713828639444,-500.0,0.00027397,2]
[323238143,1713828639453,-500.0,0.00027397,2]
[323238144,1713828639462,-500.0,0.00027397,2]
[323238145,1713828639472,-500.0,0.00027397,2]
[323238146,1713828639481,-500.0,0.00027397,2]
[323238147,1713828639491,-500.0,0.00027397,2]
[323238148,1713828639500,-500.0,0.00027397,2]
[323238149,1713828639510,-500.0,0.00027397,2]
[323238150,1713828639519,-500.0,0.00027397,2]
[323238151,1713828639528,-500.0,0.00027397,2]
[323238152,1713828639538,-218.620176,0.00027397,2]
[323238153,1713828639662,-163.663227,0.00027397,2]
[323238154,1713828639678,-10000.0,0.00027397,2]
[323238155,1713828639687,-1000.0,0.00027397,2]
[323238156,1713828639700,-166.666666,0.00027397,2]
[323238157,1713828639710,-162.768732,0.00027397,2]
[323238158,1713828639720,-6241.3202,0.00027458,30]
[323238159,1713828639730,-801.79803207,0.000275,17]
[323238160,1713828639740,-752.54335766,0.00027527,2]
[323238161,1713828639750,-154.07814826,0.00027668,2]
[323238162,1713828639760,-1246.20169703,0.00027698,2]
[323238163,1713828639770,-752.54335766,0.00027861,2]
[323238164,1713828639780,-620.433338,0.00027941,2]
[323238165,1713828639789,-120000.45934538,0.00028,2]
[323238166,1713828639799,-220.76868482,0.00028,2]
[323238167,1713828639808,-166.666666,0.00028038,2]
[323238168,1713828639817,-154.07814826,0.00028238,2]
[323238169,1713828639828,-154.07814826,0.00028472,2]
[323238170,1713828639838,-823.0,0.00028573,2]
[323238171,1713828639851,-166.666666,0.00028679,2]
[323238172,1713828639861,-154.25576797,0.0002873,2]
[323238173,1713828639871,-154.07814826,0.00028894,2]
[323238174,1713828639882,-155.25721891,0.00029084,2]
[323238175,1713828639893,-499.6,0.00029098,120]
[323238176,1713828639903,-1246.20169703,0.00029154,2]
[323238177,1713828639915,-154.25576797,0.00029205,2]
[323238178,1713828639924,-154.25576797,0.00029272,2]
[323238179,1713828639935,-166.666666,0.00029321,2]
[323238180,1713828639946,-154.07814826,0.0002936,2]
[323238181,1713828639958,-1246.20169703,0.00029396,2]
[323238182,1713828639969,-1246.20169703,0.0002958,2]
[323238183,1713828639980,-752.54335766,0.00029657,2]
[323238184,1713828639990,-214.17196753,0.00029808,2]
[323238185,1713828640000,-214.17196753,0.00029808,2]
[323238186,1713828640009,-214.17196753,0.00029808,2]
[323238187,1713828640018,-214.17196753,0.00029808,2]
[323238188,1713828640027,-214.17196753,0.00029808,2]
[323238189,1713828640036,-166.666666,0.00029962,2]
[323238190,1713828640045,-154.82968734,0.0003,4]
[323238191,1713828640054,-320.898431,0.0003,30]
[323238192,1713828640063,-154.82968734,0.0003,4]
[323238193,1713828640073,-166.666666,0.0003,2]
[323238194,1713828640081,-253.99433855,0.0003,4]
[323238195,1713828640090,-276.0,0.0003,2]
[323238196,1713828640099,-508.07,0.00030136,2]
[323238197,1713828640109,-508.07,0.00030191,2]
[323238198,1713828640118,-155.25721891,0.00030239,7]
[323238199,1713828640127,-151.0,0.00030246,2]
[323238200,1713828640136,-151.237041,0.00030246,2]
[323238201,1713828640145,-508.07,0.00030246,2]
[323238202,1713828640154,-150.34343428,0.00030287,7]
[323238203,1713828640163,-508.07,0.00030301,2]
[323238204,1713828640173,-508.07,0.00030356,2]
[323238205,1713828640182,-508.07,0.0003041,2]
[323238206,1713828640192,-508.07,0.00030465,2]
[323238208,1713828640205,-508.07,0.0003052,2]
[323238209,1713828640214,-508.07,0.00030575,2]
[323238210,1713828640222,-166.666666,0.00030603,2]
[323238211,1713828640231,-154.07814826,0.00030611,7]
[323238212,1713828640241,-508.07,0.0003063,2]
[323238213,1713828640250,-752.54335766,0.00030641,7]
[323238214,1713828640259,-1246.20169703,0.00030665,7]
[323238215,1713828640268,-508.07,0.00030684,2]
[323238216,1713828640278,-508.07,0.00030739,2]
[323238217,1713828640287,-150.34343428,0.0003077,7]
[323238218,1713828640296,-508.07,0.00030794,2]
[323238219,1713828640305,-508.07,0.00030849,2]
[323238220,1713828640314,-508.07,0.00030904,2]
[323238221,1713828640323,-150.34343428,0.00030928,7]
[323238222,1713828640332,-154.07814826,0.00030949,7]
[323238223,1713828640341,-508.07,0.00030958,2]
[323238224,1713828640350,-508.07,0.00031013,2]
[323238226,1713828640359,-508.07,0.00031068,2]
[323238228,1713828640369,-150.34343428,0.00031105,7]
[323238230,1713828640378,-508.07,0.00031123,2]
[323238232,1713828640388,-508.07,0.00031178,2]
[323238234,1713828640398,-1246.20169703,0.00031207,7]
[323238236,1713828640408,-508.07,0.00031232,2]
[323238239,1713828640417,-508.07,0.00031287,2]
[323238241,1713828640426,-752.54335766,0.00031291,7]
[323238243,1713828640436,-508.07,0.00031342,2]
[323238244,1713828640450,-151.0,0.0003135,2]
[323238246,1713828640461,-1246.20169703,0.00031374,7]
[323238248,1713828640470,-508.12933703,0.00031397,2]
[323238250,1713828640480,-1152.0,0.00031431,2]
[323238252,1713828640489,-150.34343428,0.00031444,7]
[323238254,1713828640498,-150.81901718,0.00031508,2]
[323238256,1713828640508,-154.07814826,0.0003158,7]
[323238258,1713828640517,-150.96279482,0.00031591,7]
[323238260,1713828640526,-154.25576797,0.00031793,7]
[323238263,1713828640535,-191.40398273,0.00032,4]
[323238264,1713828640544,-1331.73525103,0.00032,3]
[323238265,1713828640554,-151.0,0.00032,2]
[323238266,1713828640563,-151.0,0.00032,2]
[323238267,1713828640572,-151.0,0.00032,2]
[323238268,1713828640582,-154.25576797,0.00032015,7]
[323238271,1713828640591,-301.63803436,0.00032037,4]
[323238273,1713828640600,-154.07814826,0.00032064,7]
[323238275,1713828640610,-752.54335766,0.00032064,7]
[323238277,1713828640619,-151.0,0.00032111,2]
[323238279,1713828640628,-284.599279,0.00032234,2]
[323238281,1713828640638,-154.07814826,0.00032256,7]
[323238283,1713828640647,-752.54335766,0.000323,7]
[323238285,1713828640657,-236.2128399,0.00032308,4]
[323238287,1713828640666,-1353.35182827,0.0003231,4]
[323238289,1713828640676,-1246.20169703,0.00032323,7]
[323238291,1713828640685,-154.07814826,0.00032349,7]
[323238292,1713828640700,-151.0,0.00032416,2]
[323238295,1713828640709,-151.0,0.00032416,2]
[323238298,1713828640719,-256.582378,0.00032416,2]
[323238299,1713828640728,-207.892959,0.00032416,2]
[323238300,1713828640737,-207.892959,0.00032416,2]
[323238301,1713828640747,-603.27606872,0.00032576,7]
[323238302,1713828640757,-150.34343428,0.00032634,7]
[323238304,1713828640766,-200.0,0.00032669,120]
[323238306,1713828640775,-154.07814826,0.00032708,7]
[323238307,1713828640784,-752.54335766,0.0003276,7]
[323238308,1713828640793,-155.25721891,0.00032906,7]
[323238309,1713828640803,-276.0,0.00033,2]
[323238310,1713828640813,-276.0,0.00033,2]
[323238311,1713828640822,-155.25721891,0.00033105,7]
[323238312,1713828640831,-218.620176,0.00033165,2]
[323238313,1713828640841,-150.0,0.00033185,2]
[323238314,1713828640850,-866.81654111,0.00033247,4]
[323238315,1713828640859,-55991.53149892,0.0003333,2]
[323238316,1713828640870,-1206.55213744,0.00033401,30]
[323238317,1713828640881,-1246.20169703,0.00033693,7]
[323238318,1713828640890,-150.34343428,0.00033806,7]
[323238319,1713828640901,-163.663227,0.00033844,2]
[323238320,1713828640911,-752.54335766,0.00033908,7]
[323238321,1713828640921,-154.25576797,0.00033929,7]
[323238322,1713828640932,-1068.69629863,0.00033999,2]
[323238323,1713828640946,-465.92917544,0.00034,4]
[323238324,1713828640958,-1246.20169703,0.00034081,7]
[323238325,1713828640970,-2097.87,0.00034103,10]
[323238326,1713828640980,-602.74968351,0.00034104,4]
[323238327,1713828640991,-351.61718403,0.00034104,4]
[323238328,1713828641002,-154.84515485,0.00034104,4]
[323238329,1713828641014,-761.22889194,0.00034104,4]
[323238330,1713828641024,-288.74543183,0.00034104,4]
[323238331,1713828641034,-155.13136618,0.00034104,4]
[323238332,1713828641045,-888.60953251,0.00034104,4]
[323238333,1713828641057,-2433.85038463,0.00034104,4]
[323238334,1713828641066,-308.65616878,0.00034104,4]
[323238335,1713828641079,-474.07868956,0.00034104,4]
[323238336,1713828641090,-869.06251512,0.00034104,4]
[323238337,1713828641100,-154.84515485,0.00034104,4]
[323238338,1713828641110,-393.43786285,0.00034104,4]
[323238339,1713828641119,-201.64876762,0.00034104,2]
[323238340,1713828641128,-154.8915759,0.00034104,4]
[323238341,1713828641139,-259.14369417,0.00034114,4]
[323238342,1713828641149,-309.61302161,0.00034114,4]
[323238343,1713828641158,-645.76008261,0.00034114,4]
[323238344,1713828641167,-151.0,0.00034114,2]
[323238345,1713828641176,-274.422372,0.00034114,2]
[323238346,1713828641185,-151.0,0.00034114,2]
[323238347,1713828641199,-43793.07542626,0.00034115,2]
[323238348,1713828641231,-693.01732366,0.0002147,2]
[323238349,1713828641242,-1109.79695728,0.00034115,2]
[323238350,1713828641252,-5492.93,0.00034115,2]
[323238351,1713828641262,-5492.93,0.00034115,2]
[323238352,1713828641272,-5492.93,0.00034115,2]
[323238353,1713828641282,-5492.93,0.00034115,2]
[323238354,1713828641291,-5492.93,0.00034115,2]
[323238355,1713828641300,-1728.05451309,0.00034115,2]
[323238356,1713828641312,-3764.87548691,0.00034115,2]
[323238357,1713828641322,-5492.93,0.00034115,2]
[323238358,1713828641331,-5492.93,0.00034115,2]
[323238359,1713828641341,-151.0,0.00034115,2]
[323238360,1713828641350,-151.0,0.00034115,2]
[323238361,1713828641361,-5492.94,0.00034115,2]
[323238362,1713828641370,-151.256745,0.00034115,2]
[323238363,1713828641380,-207.892959,0.00034115,2]
[323238364,1713828641389,-207.892959,0.00034115,2]
[323238365,1713828641399,-151.0,0.00034115,2]
[323238366,1713828641408,-151.0,0.00034115,2]
[323238367,1713828641417,-818.089077,0.00034115,2]
[323238368,1713828641426,-819.410799,0.00034115,2]
[323238369,1713828641436,-819.410799,0.00034115,2]
[323238370,1713828641447,-151.0,0.00034115,2]
[323238371,1713828641456,-249.983144,0.00034115,2]
[323238372,1713828641466,-699.450374,0.00034115,2]
[323238373,1713828641475,-699.450374,0.00034115,2]
[323238374,1713828641484,-151.401165,0.00034115,2]
[323238375,1713828641493,-151.0,0.00034115,2]
[323238376,1713828641502,-151.0,0.00034115,2]
[323238377,1713828641513,-151.0,0.00034115,2]
[323238378,1713828641522,-947.46144,0.00034115,2]
[323238379,1713828641531,-947.46144,0.00034115,2]
[323238380,1713828641541,-151.0,0.00034115,2]
[323238381,1713828641549,-151.0,0.00034115,2]
[323238382,1713828641558,-321.555935,0.00034115,2]
[323238383,1713828641567,-321.555935,0.00034115,2]
[323238384,1713828641575,-151.0,0.00034115,2]
[323238385,1713828641584,-151.0,0.00034115,2]
[323238386,1713828641592,-151.0,0.00034115,2]
[323238387,1713828641601,-10114.69792276,0.00034116,7]
[323238388,1713828641609,-307.63827702,0.00034116,4]
[323238389,1713828641618,-45184.93711714,0.00034116,60]
[323238390,1713828641629,-20148.8668669,0.00034116,60]
[323238434,1713828644871,-1058.60012501,0.00034116,60]
[323238441,1713828650976,1000.0,0.00020725,2]
[323238442,1713828717486,1000.0,0.00020725,2]
[323238443,1713828733482,1000.0,0.00020725,2]
[323238444,1713828755553,1000.0,0.00020725,2]
[323238445,1713828775489,1000.0,0.00020725,2]
[323238446,1713828795493,1000.0,0.00020725,2]
[323238450,1713829059235,155.12524022,0.00020725,2]
[323238451,1713829079227,155.12524022,0.00020725,2]
[323238452,1713829099229,155.12524022,0.00020725,2]
[323238453,1713829100869,10109.91861489,0.00020725,2]
[323238454,1713829118826,3280.52592728,0.00020725,2]
[323238455,1713829119237,155.12524022,0.00020725,2]
[323238456,1713829137238,155.12524022,0.00020725,2]
[323238457,1713829159245,155.12524022,0.00020725,2]
[323238458,1713829175479,155.12524022,0.00020725,2]
[323238459,1713829197241,155.12524022,0.00020725,2]
[323238460,1713829213245,155.12524022,0.00020725,2]
[323238461,1713829233255,155.12524022,0.00020725,2]
[323238462,1713829249255,155.12524022,0.00020725,2]
[323238463,1713829277257,155.12524022,0.00020725,2]
[323238464,1713829295498,155.12524022,0.00020725,2]
[323238465,1713829313355,155.12524022,0.00020725,2]
[323238466,1713829329261,155.12524022,0.00020725,2]
[323238467,1713829353266,155.12524022,0.00020725,2]
[323238468,1713829375264,155.12524022,0.00020725,2]
[323238469,1713829395273,155.12524022,0.00020725,2]
[323238470,1713829413271,185.19750375,0.00020725,2]
[323238472,1713829597719,1084.70046464,0.000189,2]
[323238473,1713829685135,767.53389711,0.00020965,5]
[323238474,1713829705094,370.73605986,0.00020965,5]
[323238572,1713829837851,-460.561744,0.00021525,2]
[323238573,1713829837861,-833.32837129,0.00021797,2]
[323238574,1713829837872,-258.89243828,0.00021797,2]
[323238576,1713829837906,-4366.36780793,0.00021797,2]
[323238577,1713829837915,-319.6542586,0.00021798,2]
[323238578,1713829837925,-1877.77097996,0.00021798,2]
[323238579,1713829837934,-154.82968734,0.00021799,2]
[323238580,1713829837944,-154.82968734,0.00021799,2]
[323238581,1713829837953,-154.82968734,0.000218,2]
[323238582,1713829837964,-927.5718807,0.000218,2]
[323238583,1713829837974,-154.82968734,0.00021801,2]
[323238584,1713829837983,-1056.82567173,0.00021801,2]
[323238585,1713829837992,-570.0393842,0.00021802,2]
[323238586,1713829838002,-349.00366465,0.00021991,2]
[323238588,1713829838011,-300.0,0.00021991,2]
[323238590,1713829838020,-300.0,0.00021991,2]
[323238592,1713829838029,-154.82968734,0.00022,2]
[323238593,1713829838039,-1000.0,0.0002267,2]
[323238594,1713829838048,-623.42407479,0.00022685,2]
[323238595,1713829838057,-200.87348119,0.00022688,2]
[323238596,1713829838066,-276.16517788,0.00023,2]
[323238597,1713829838076,-717.62596485,0.00023078,2]
[323238598,1713829838086,-878.85185253,0.00023294,2]
[323238599,1713829838095,-705.26131867,0.00023294,2]
[323238600,1713829838105,-18596.81740477,0.00023296,2]
[323238601,1713829838115,-13258.3839339,0.00023297,2]
[323238602,1713829838124,-150.0,0.00023316,2]
[323238603,1713829838133,-168.575114,0.0002333,2]
[323238604,1713829838143,-420.0,0.00023897,2]
[323238605,1713829838152,-1084.70046464,0.000239,2]
[323238606,1713829838161,-420.0,0.0002419,2]
[323238607,1713829838170,-624.88129824,0.00024232,2]
[323238608,1713829838180,-291.46948124,0.00024685,2]
[323238609,1713829838190,-157.23828164,0.00025,2]
[323238610,1713829838199,-3248.49317546,0.00025379,2]
[323238611,1713829838208,-3248.4931754,0.0002539,2]
[323238612,1713829838218,-3248.4931754,0.000254,2]
[323238613,1713829838227,-3248.4931754,0.00025411,2]
[323238614,1713829838236,-3248.4931754,0.00025421,2]
[323238615,1713829838245,-3248.4931754,0.00025432,2]
[323238616,1713829838254,-3248.4931754,0.00025442,2]
[323238617,1713829838263,-620.24406491,0.00025443,2]
[323238618,1713829838273,-342.72173801,0.00025446,2]
[323238619,1713829838282,-1685.73320516,0.00025446,2]
[323238620,1713829838291,-205.72464566,0.00025447,2]
[323238621,1713829838301,-193.69034915,0.00025447,2]
[323238622,1713829838310,-3248.4931754,0.00025453,2]
[323238623,1713829838319,-220.61207638,0.00025454,2]
[323238624,1713829838329,-1620.16401568,0.00025454,2]
[323238625,1713829838339,-180.13273192,0.00025454,2]
[323238626,1713829838348,-207.49027551,0.00025454,2]
[323238627,1713829838357,-159.59769079,0.00025454,2]
[323238628,1713829838366,-564.79217368,0.00025454,2]
[323238629,1713829838376,-520.79166941,0.00025454,2]
[323238630,1713829838385,-459.645754,0.00025454,2]
[323238631,1713829838394,-250.27074461,0.00025454,2]
[323238632,1713829838404,-166.63771264,0.00025454,2]
[323238633,1713829838414,-277.24658734,0.00025455,2]
[323238634,1713829838423,-869.06251512,0.00025456,2]
[323238635,1713829838433,-351.61718403,0.00025456,2]
[323238636,1713829838442,-761.22889194,0.00025456,2]
[323238637,1713829838451,-309.61302161,0.00025456,2]
[323238638,1713829838461,-154.8915759,0.00025456,2]
[323238639,1713829838470,-645.76008261,0.00025456,2]
[323238640,1713829838479,-602.74968351,0.00025456,2]
[323238641,1713829838488,-201.64876762,0.00025456,2]
[323238642,1713829838498,-308.65616878,0.00025456,2]
[323238643,1713829838507,-474.07868956,0.00025456,2]
[323238644,1713829838516,-1846.42304824,0.00025456,2]
[323238645,1713829838525,-2439.57070982,0.00025456,2]
[323238646,1713829838535,-469.73020406,0.00025456,2]
[323238647,1713829838544,-888.60953251,0.00025457,2]
[323238648,1713829838553,-155.13136618,0.00025457,2]
[323238649,1713829838562,-3248.4931754,0.00025463,2]
[323238650,1713829838571,-3248.4931754,0.00025474,2]
[323238651,1713829838581,-380.14008131,0.00025497,2]
[323238652,1713829838590,-59593.04727207,0.00025498,2]
[323238653,1713829838599,-127793.5653,0.00025499,30]
[323238654,1713829838609,-636.46054503,0.00025598,2]
[323238655,1713829838622,-169.293986,0.00025939,2]
[323238656,1713829838631,-587.0,0.00025968,2]
[323238657,1713829838641,-692.61042729,0.00026,2]
[323238658,1713829838651,-154.73133849,0.00026022,2]
[323238659,1713829838661,-221.50276367,0.00026056,2]
[323238660,1713829838671,-154.73133849,0.00026059,2]
[323238661,1713829838680,-1214.47555626,0.00026064,2]
[323238662,1713829838689,-9999.999999,0.000261,10]
[323238663,1713829838699,-1214.47555626,0.00026107,2]
[323238664,1713829838709,-221.50276367,0.00026181,2]
[323238665,1713829838722,-1214.47555626,0.00026258,2]
[323238666,1713829838731,-1214.47555626,0.0002632,2]
[323238667,1713829838740,-169.293986,0.00026403,2]
[323238668,1713829838750,-1214.47555626,0.00026531,2]
[323238669,1713829838759,-154.25642367,0.00026562,2]
[323238670,1713829838768,-587.0,0.00026609,2]
[323238671,1713829838777,-150.96279482,0.00026657,2]
[323238672,1713829838786,-620.01220325,0.00026715,2]
[323238673,1713829838795,-1214.47555626,0.00026724,2]
[323238674,1713829838805,-620.82302725,0.00026878,2]
[323238675,1713829838814,-169.293986,0.00026884,2]
[323238676,1713829838822,-154.82968734,0.00027,2]
[323238677,1713829838832,-332.38819351,0.00027,20]
[323238678,1713829838841,-8515.70774373,0.00027,2]
[323238679,1713829838850,-2174.60197356,0.00027,2]
[323238680,1713829838860,-500.0,0.00027397,2]
[323238681,1713829838869,-500.0,0.00027397,2]
[323238682,1713829838878,-500.0,0.00027397,2]
[323238683,1713829838887,-500.0,0.00027397,2]
[323238684,1713829838896,-500.0,0.00027397,2]
[323238685,1713829838905,-500.0,0.00027397,2]
[323238686,1713829838915,-500.0,0.00027397,2]
[323238687,1713829838924,-500.0,0.00027397,2]
[323238688,1713829838933,-500.0,0.00027397,2]
[323238689,1713829838942,-500.0,0.00027397,2]
[323238690,1713829838952,-500.0,0.00027397,2]
[323238691,1713829838962,-500.0,0.00027397,2]
[323238692,1713829838971,-500.0,0.00027397,2]
[323238693,1713829838980,-500.0,0.00027397,2]
[323238694,1713829838990,-500.0,0.00027397,2]
[323238695,1713829838999,-500.0,0.00027397,2]
[323238696,1713829839008,-500.0,0.00027397,2]
[323238697,1713829839018,-500.0,0.00027397,2]
[323238698,1713829839028,-500.0,0.00027397,2]
[323238699,1713829839037,-500.0,0.00027397,2]
[323238700,1713829839047,-500.0,0.00027397,2]
[323238701,1713829839057,-500.0,0.00027397,2]
[323238702,1713829839066,-500.0,0.00027397,2]
[323238703,1713829839075,-500.0,0.00027397,2]
[323238704,1713829839084,-500.0,0.00027397,2]
[323238705,1713829839093,-500.0,0.00027397,2]
[323238706,1713829839102,-500.0,0.00027397,2]
[323238707,1713829839110,-500.0,0.00027397,2]
[323238708,1713829839120,-500.0,0.00027397,2]
[323238709,1713829839129,-500.0,0.00027397,2]
[323238710,1713829839138,-500.0,0.00027397,2]
[323238711,1713829839147,-361.25347787,0.00027397,2]
[323238712,1713829839157,-500.0,0.00027397,2]
[323238713,1713829839166,-500.0,0.00027397,2]
[323238714,1713829839175,-500.0,0.00027397,2]
[323238715,1713829839185,-500.0,0.00027397,2]
[323238716,1713829839194,-500.0,0.00027397,2]
[323238717,1713829839203,-500.0,0.00027397,2]
[323238718,1713829839215,-500.0,0.00027397,2]
[323238719,1713829839225,-157.638126,0.00027397,2]
[323238720,1713829839234,-1000.0,0.00027397,2]
[323238721,1713829839243,-10000.0,0.00027397,2]
[323238722,1713829839252,-166.666666,0.00027397,2]
[323238723,1713829839261,-207.704077,0.00027397,2]
[323238724,1713829839270,-169.293986,0.00027467,2]
[323238725,1713829839279,-169.293986,0.00027468,2]
[323238727,1713829839288,-1214.47555626,0.00027476,2]
[323238728,1713829839297,-154.25642367,0.00027489,2]
[323238729,1713829839306,-6241.3202,0.00027499,30]